[Event "Late-Titled-Tuesday-Blitz-May-14-2024"]
[Site "Chess.com"]
[Date "2024.05.14"]
[Round "1"]
[White "SujanaLohani"]
[Black "ChadBiryani"]
[Result "1-0"]
[WhiteElo "2040"]
[BlackElo "2545"]
[TimeControl "180+1"]
[EndTime "14:08:23 PDT"]
[Termination "SujanaLohani won by checkmate"]

1. e4 {[%clk 0:02:58.2]} 1... d5 {[%clk 0:02:59.2]} 2. exd5 {[%clk 0:02:55.7]}
2... Qxd5 {[%clk 0:03:00.1]} 3. d4 {[%clk 0:02:54.1]} 3... e5 {[%clk 0:02:58.2]}
4. dxe5 {[%clk 0:02:49.2]} 4... Qxe5+ {[%clk 0:02:58]} 5. Be2 {[%clk 0:02:49.7]}
5... Bg4 {[%clk 0:02:52.8]} 6. Nf3 {[%clk 0:02:49.6]} 6... Bxf3 {[%clk 0:02:53]}
7. gxf3 {[%clk 0:02:48.8]} 7... Nd7 {[%clk 0:02:49.6]} 8. f4 {[%clk 0:02:36.2]}
8... Qe4 {[%clk 0:02:40.4]} 9. O-O {[%clk 0:02:32.9]} 9... O-O-O {[%clk
0:02:38.7]} 10. Nc3 {[%clk 0:02:30]} 10... Qg6+ {[%clk 0:02:34.5]} 11. Kh1
{[%clk 0:02:27]} 11... Bd6 {[%clk 0:02:27.1]} 12. Be3 {[%clk 0:02:24.5]} 12...
a6 {[%clk 0:02:19.3]} 13. Rg1 {[%clk 0:02:22.8]} 13... Qh6 {[%clk 0:02:18.2]}
14. Qd4 {[%clk 0:01:58.9]} 14... Ngf6 {[%clk 0:02:11.8]} 15. Qa7 {[%clk
0:01:55.9]} 15... Nb8 {[%clk 0:01:33.7]} 16. Bf3 {[%clk 0:01:35.2]} 16... c6
{[%clk 0:01:28.8]} 17. Na4 {[%clk 0:01:06.6]} 17... Nfd7 {[%clk 0:01:07.9]} 18.
Qd4 {[%clk 0:00:45.8]} 18... Bc7 {[%clk 0:01:02.5]} 19. Qxg7 {[%clk 0:00:42.2]}
19... Qe6 {[%clk 0:00:55.1]} 20. Nc5 {[%clk 0:00:29.9]} 20... Qc4 {[%clk
0:00:52.9]} 21. Nxd7 {[%clk 0:00:27.1]} 21... Nxd7 {[%clk 0:00:52.3]} 22. c3
{[%clk 0:00:25.6]} 22... Bxf4 {[%clk 0:00:46]} 23. Rg4 {[%clk 0:00:23.5]} 23...
Rhg8 {[%clk 0:00:28]} 24. Qxg8 {[%clk 0:00:18.6]} 24... Rxg8 {[%clk 0:00:25]}
25. Rxg8+ {[%clk 0:00:19.5]} 25... Kc7 {[%clk 0:00:25.5]} 26. Rg4 {[%clk
0:00:19.5]} 26... Qd3 {[%clk 0:00:15.6]} 27. Rxf4 {[%clk 0:00:19.8]} 27... Ne5
{[%clk 0:00:12.7]} 28. Rd1 {[%clk 0:00:20.3]} 28... Qg6 {[%clk 0:00:12.3]} 29.
Bg2 {[%clk 0:00:19.8]} 29... f6 {[%clk 0:00:08.3]} 30. Bd4 {[%clk 0:00:19]}
30... Qh5 {[%clk 0:00:08.1]} 31. Re1 {[%clk 0:00:17.5]} 31... Ng4 {[%clk
0:00:05.8]} 32. h3 {[%clk 0:00:15.8]} 32... Ne5 {[%clk 0:00:06.2]} 33. Rxf6
{[%clk 0:00:15.2]} 33... Nc4 {[%clk 0:00:05.7]} 34. Re7+ {[%clk 0:00:15.4]}
34... Kd8 {[%clk 0:00:05.6]} 35. Rg7 {[%clk 0:00:15.3]} 35... Qe8 {[%clk
0:00:04.7]} 36. Kh2 {[%clk 0:00:12.5]} 36... c5 {[%clk 0:00:03.4]} 37. Rf4
{[%clk 0:00:05.6]} 37... cxd4 {[%clk 0:00:02.6]} 38. Rxd4+ {[%clk 0:00:06.5]}
38... Kc8 {[%clk 0:00:02.6]} 39. Rxb7 {[%clk 0:00:02.4]} 39... Qe5+ {[%clk
0:00:02.3]} 40. f4 {[%clk 0:00:02.6]} 40... Qe6 {[%clk 0:00:01.4]} 41. f5 {[%clk
0:00:01.9]} 41... Qe5+ {[%clk 0:00:01.6]} 42. Kg1 {[%clk 0:00:02.2]} 42... Qe1+
{[%clk 0:00:01.4]} 43. Kh2 {[%clk 0:00:02.5]} 43... Qe5+ {[%clk 0:00:02.2]} 44.
Kg1 {[%clk 0:00:03.1]} 44... Nd6 {[%clk 0:00:02.9]} 45. Rb6 {[%clk 0:00:02.6]}
45... Qe1+ {[%clk 0:00:02.3]} 46. Bf1 {[%clk 0:00:01.9]} 46... Qg3+ {[%clk
0:00:02.2]} 47. Bg2 {[%clk 0:00:01.3]} 47... Nxf5 {[%clk 0:00:01.9]} 48. Rc6+
{[%clk 0:00:00.8]} 48... Kb7 {[%clk 0:00:02]} 49. Rb4+ {[%clk 0:00:01.7]} 49...
Ka7 {[%clk 0:00:01.7]} 50. Re6 {[%clk 0:00:01.6]} 50... Qe3+ {[%clk 0:00:01.2]}
51. Rxe3 {[%clk 0:00:01.4]} 51... Nxe3 {[%clk 0:00:02.1]} 52. Re4 {[%clk
0:00:01.5]} 52... Nc4 {[%clk 0:00:02.3]} 53. Rxc4 {[%clk 0:00:01.4]} 53... Kb6
{[%clk 0:00:03.1]} 54. Rd4 {[%clk 0:00:02.3]} 54... Kb5 {[%clk 0:00:03.8]} 55.
Re4 {[%clk 0:00:03.2]} 55... a5 {[%clk 0:00:04.7]} 56. Rf4 {[%clk 0:00:04.1]}
56... a4 {[%clk 0:00:05.6]} 57. Rb4+ {[%clk 0:00:04.4]} 57... Ka5 {[%clk
0:00:05.8]} 58. a3 {[%clk 0:00:05.3]} 58... h6 {[%clk 0:00:05.9]} 59. Rh4 {[%clk
0:00:06.2]} 59... h5 {[%clk 0:00:06.8]} 60. Rxh5+ {[%clk 0:00:06.2]} 60... Kb6
{[%clk 0:00:07.7]} 61. Rg5 {[%clk 0:00:07.1]} 61... Ka6 {[%clk 0:00:07.7]} 62.
h4 {[%clk 0:00:08]} 62... Kb6 {[%clk 0:00:08.6]} 63. h5 {[%clk 0:00:08.9]} 63...
Kc7 {[%clk 0:00:09.5]} 64. h6 {[%clk 0:00:09.8]} 64... Kd6 {[%clk 0:00:10.4]}
65. h7 {[%clk 0:00:10.7]} 65... Ke7 {[%clk 0:00:11.3]} 66. h8=Q {[%clk
0:00:11.2]} 66... Kf7 {[%clk 0:00:11.9]} 67. Qh6 {[%clk 0:00:11.7]} 67... Ke8
{[%clk 0:00:11.9]} 68. Rg7 {[%clk 0:00:12.4]} 68... Kf8 {[%clk 0:00:12.8]} 69.
Qh8# {[%clk 0:00:13]} 1-0

[Event "Late-Titled-Tuesday-Blitz-May-14-2024"]
[Site "Chess.com"]
[Date "2024.05.14"]
[Round "1"]
[White "KingCyber19"]
[Black "campochess"]
[Result "0-1"]
[WhiteElo "2552"]
[BlackElo "2110"]
[TimeControl "180+1"]
[EndTime "14:08:27 PDT"]
[Termination "campochess won by resignation"]

1. d4 {[%clk 0:03:00.4]} 1... Nf6 {[%clk 0:02:59.3]} 2. c4 {[%clk 0:02:59.7]}
2... g6 {[%clk 0:02:59.4]} 3. Nc3 {[%clk 0:02:57.9]} 3... d5 {[%clk 0:02:59.1]}
4. cxd5 {[%clk 0:02:57.4]} 4... Nxd5 {[%clk 0:02:58.5]} 5. e4 {[%clk 0:02:58.1]}
5... Nxc3 {[%clk 0:02:58.4]} 6. bxc3 {[%clk 0:02:58.8]} 6... Bg7 {[%clk
0:02:58.2]} 7. Bc4 {[%clk 0:02:59.5]} 7... c5 {[%clk 0:02:57.9]} 8. Ne2 {[%clk
0:02:59.9]} 8... O-O {[%clk 0:02:57.9]} 9. Be3 {[%clk 0:02:53.8]} 9... Bg4
{[%clk 0:02:56.1]} 10. O-O {[%clk 0:02:48.9]} 10... Nc6 {[%clk 0:02:55]} 11. f3
{[%clk 0:02:42.9]} 11... Bc8 {[%clk 0:02:52.8]} 12. Qd2 {[%clk 0:02:32.6]} 12...
Re8 {[%clk 0:02:50.9]} 13. Rfd1 {[%clk 0:02:16.6]} 13... Qa5 {[%clk 0:02:50.4]}
14. Rac1 {[%clk 0:02:10.4]} 14... a6 {[%clk 0:02:48.4]} 15. dxc5 {[%clk
0:02:06.6]} 15... Ne5 {[%clk 0:02:42.3]} 16. Bb3 {[%clk 0:02:03.3]} 16... Nd7
{[%clk 0:02:20.5]} 17. Qd5 {[%clk 0:01:49.7]} 17... e6 {[%clk 0:02:15.6]} 18.
Qc4 {[%clk 0:01:50]} 18... Nf6 {[%clk 0:02:14]} 19. Bd4 {[%clk 0:01:45.4]} 19...
Nd7 {[%clk 0:02:08.8]} 20. Bxg7 {[%clk 0:01:40.7]} 20... Kxg7 {[%clk 0:02:08.7]}
21. Rxd7 {[%clk 0:01:41.3]} 21... Bxd7 {[%clk 0:02:06.3]} 22. Qd4+ {[%clk
0:01:41.6]} 22... Kg8 {[%clk 0:02:03.5]} 23. Qxd7 {[%clk 0:01:41.8]} 23... Rad8
{[%clk 0:02:01.9]} 24. Qxb7 {[%clk 0:01:32.8]} 24... Rd2 {[%clk 0:02:01.7]} 25.
Nd4 {[%clk 0:01:25.2]} 25... Qa3 {[%clk 0:01:59.4]} 26. Rd1 {[%clk 0:01:02.4]}
26... Rxd1+ {[%clk 0:01:55.3]} 27. Bxd1 {[%clk 0:01:03.3]} 27... Qxc3 {[%clk
0:01:52.9]} 28. Nc2 {[%clk 0:00:51.1]} 28... Qxc5+ {[%clk 0:01:51.4]} 29. Kf1
{[%clk 0:00:50.6]} 29... Rd8 {[%clk 0:01:51]} 30. Qb1 {[%clk 0:00:35]} 30... Qc3
{[%clk 0:01:39.8]} 31. Ne1 {[%clk 0:00:17.6]} 31... Rd2 {[%clk 0:01:34.6]} 32.
Bc2 {[%clk 0:00:07.1]} 32... Qe3 {[%clk 0:01:28.5]} 33. Qb8+ {[%clk 0:00:06.8]}
33... Kg7 {[%clk 0:01:25.7]} 34. Qe5+ {[%clk 0:00:06.2]} 34... Kh6 {[%clk
0:01:20.8]} 35. Qg3 {[%clk 0:00:05.5]} 35... Qe2+ {[%clk 0:01:19.2]} 36. Kg1
{[%clk 0:00:06.1]} 36... Rxc2 {[%clk 0:01:18.8]} 37. Nxc2 {[%clk 0:00:06]} 37...
Qxc2 {[%clk 0:01:16]} 38. Qf4+ {[%clk 0:00:06.6]} 38... Kg7 {[%clk 0:01:15.4]}
39. Qe5+ {[%clk 0:00:07.3]} 39... Kh6 {[%clk 0:01:13.2]} 40. Qf4+ {[%clk
0:00:06.7]} 40... Kg7 {[%clk 0:01:13]} 41. Qe5+ {[%clk 0:00:07.4]} 41... Kh6
{[%clk 0:01:13]} 42. Qa1 {[%clk 0:00:07.8]} 42... Qc5+ {[%clk 0:01:10.9]} 43.
Kh1 {[%clk 0:00:07.4]} 43... Qf2 {[%clk 0:01:09.5]} 44. a4 {[%clk 0:00:06.9]}
44... Qc5 {[%clk 0:01:04.9]} 45. Qd1 {[%clk 0:00:06.6]} 45... Qc3 {[%clk
0:01:01.7]} 46. h3 {[%clk 0:00:06.1]} 46... g5 {[%clk 0:01:00.6]} 47. Kh2 {[%clk
0:00:04.5]} 47... Kg6 {[%clk 0:00:57.9]} 48. Kh1 {[%clk 0:00:03.5]} 48... h5
{[%clk 0:00:57.8]} 49. Kh2 {[%clk 0:00:03.3]} 49... h4 {[%clk 0:00:57.8]} 50.
Kh1 {[%clk 0:00:04]} 50... Kh6 {[%clk 0:00:54.9]} 51. Qb1 {[%clk 0:00:04]} 51...
Qa3 {[%clk 0:00:50.2]} 52. Qd1 {[%clk 0:00:03.3]} 52... Kh7 {[%clk 0:00:44.1]}
53. Qd7 {[%clk 0:00:03.6]} 53... Qa1+ {[%clk 0:00:41.3]} 54. Kh2 {[%clk
0:00:04.2]} 54... Qe5+ {[%clk 0:00:41.2]} 55. Kg1 {[%clk 0:00:04.9]} 55... Qa1+
{[%clk 0:00:40]} 56. Kf2 {[%clk 0:00:05.5]} 56... Qb2+ {[%clk 0:00:39]} 57. Ke3
{[%clk 0:00:05.9]} 57... Qc3+ {[%clk 0:00:37.5]} 58. Ke2 {[%clk 0:00:06.2]}
58... Qc2+ {[%clk 0:00:36.2]} 59. Qd2 {[%clk 0:00:06.8]} 59... Qxa4 {[%clk
0:00:35.7]} 60. Qxg5 {[%clk 0:00:06.7]} 60... Qb5+ {[%clk 0:00:31.8]} 61. Qxb5
{[%clk 0:00:05.5]} 61... axb5 {[%clk 0:00:32]} 62. f4 {[%clk 0:00:05.9]} 62...
Kg6 {[%clk 0:00:31.7]} 63. Kf3 {[%clk 0:00:05.6]} 63... e5 {[%clk 0:00:31.1]}
64. fxe5 {[%clk 0:00:04.1]} 64... Kg5 {[%clk 0:00:31.1]} 65. Ke3 {[%clk
0:00:04.2]} 65... b4 {[%clk 0:00:27.1]} 66. Kd4 {[%clk 0:00:03.5]} 66... Kf4
{[%clk 0:00:27]} 67. Kd5 {[%clk 0:00:02]} 67... b3 {[%clk 0:00:25.6]} 68. e6
{[%clk 0:00:01.6]} 68... fxe6+ {[%clk 0:00:24.7]} 69. Kxe6 {[%clk 0:00:02.5]}
69... b2 {[%clk 0:00:24.7]} 70. e5 {[%clk 0:00:03.4]} 70... b1=Q {[%clk
0:00:24.1]} 71. Kf6 {[%clk 0:00:04.3]} 71... Qf5+ {[%clk 0:00:23.7]} 0-1

[Event "Late-Titled-Tuesday-Blitz-May-14-2024"]
[Site "Chess.com"]
[Date "2024.05.14"]
[Round "1"]
[White "GothamChess"]
[Black "ural58"]
[Result "0-1"]
[WhiteElo "2775"]
[BlackElo "2458"]
[TimeControl "180+1"]
[EndTime "14:08:32 PDT"]
[Termination "ural58 won by resignation"]

1. e4 {[%clk 0:02:57.3]} 1... d5 {[%clk 0:02:59.7]} 2. exd5 {[%clk 0:02:55.6]}
2... Qxd5 {[%clk 0:02:59.4]} 3. h3 {[%clk 0:02:56.2]} 3... e5 {[%clk 0:02:56.8]}
4. Nf3 {[%clk 0:02:54.6]} 4... Nc6 {[%clk 0:02:55.9]} 5. Nc3 {[%clk 0:02:54.4]}
5... Qe6 {[%clk 0:02:55.6]} 6. Bb5 {[%clk 0:02:53.7]} 6... Bd7 {[%clk
0:02:55.6]} 7. O-O {[%clk 0:02:53.6]} 7... O-O-O {[%clk 0:02:53.8]} 8. Re1
{[%clk 0:02:50]} 8... Qg6 {[%clk 0:02:32.8]} 9. Kh1 {[%clk 0:02:26.2]} 9... f6
{[%clk 0:01:19]} 10. Qe2 {[%clk 0:02:14.7]} 10... Nge7 {[%clk 0:01:17.6]} 11. d3
{[%clk 0:02:11.9]} 11... Nf5 {[%clk 0:01:16.8]} 12. Be3 {[%clk 0:02:07.4]} 12...
a6 {[%clk 0:01:16.6]} 13. Ba4 {[%clk 0:02:03.7]} 13... h5 {[%clk 0:01:13.9]} 14.
a3 {[%clk 0:01:56.8]} 14... Qe8 {[%clk 0:01:12.6]} 15. Ne4 {[%clk 0:01:32.3]}
15... Ncd4 {[%clk 0:01:03.9]} 16. Bxd7+ {[%clk 0:01:30.3]} 16... Qxd7 {[%clk
0:01:03]} 17. Bxd4 {[%clk 0:01:30.9]} 17... Nxd4 {[%clk 0:01:03.1]} 18. Nxd4
{[%clk 0:01:30.9]} 18... Qxd4 {[%clk 0:01:03.3]} 19. b4 {[%clk 0:01:24.6]} 19...
Be7 {[%clk 0:01:02]} 20. Qf3 {[%clk 0:01:23.6]} 20... Qd7 {[%clk 0:01:00]} 21.
Rab1 {[%clk 0:01:22.4]} 21... Rdf8 {[%clk 0:00:34.1]} 22. b5 {[%clk 0:01:14.2]}
22... axb5 {[%clk 0:00:31.8]} 23. a4 {[%clk 0:01:14.9]} 23... b4 {[%clk
0:00:31.6]} 24. a5 {[%clk 0:01:03.7]} 24... Qc6 {[%clk 0:00:30.2]} 25. Qf5+
{[%clk 0:01:03.4]} 25... Kb8 {[%clk 0:00:29.1]} 26. a6 {[%clk 0:01:02.8]} 26...
Qxa6 {[%clk 0:00:27.6]} 27. Qd7 {[%clk 0:00:59.3]} 27... Re8 {[%clk 0:00:22.9]}
28. c3 {[%clk 0:00:49.9]} 28... Qc6 {[%clk 0:00:21.4]} 29. Qf5 {[%clk 0:00:46]}
29... Rhg8 {[%clk 0:00:18.2]} 30. Qxh5 {[%clk 0:00:38.3]} 30... g6 {[%clk
0:00:18.5]} 31. Qf3 {[%clk 0:00:38]} 31... f5 {[%clk 0:00:18.6]} 32. Nd2 {[%clk
0:00:35.5]} 32... Qxf3 {[%clk 0:00:18.6]} 33. Nxf3 {[%clk 0:00:36.4]} 33... bxc3
{[%clk 0:00:18.2]} 34. Rec1 {[%clk 0:00:29.4]} 34... Bd6 {[%clk 0:00:17.7]} 35.
Rxc3 {[%clk 0:00:29.1]} 35... Rd8 {[%clk 0:00:17.8]} 36. Rcb3 {[%clk 0:00:24.2]}
36... b6 {[%clk 0:00:17.3]} 37. Nd2 {[%clk 0:00:24.1]} 37... Kc8 {[%clk
0:00:13.7]} 38. Nc4 {[%clk 0:00:24.4]} 38... Rge8 {[%clk 0:00:12.9]} 39. Ra1
{[%clk 0:00:20]} 39... Kd7 {[%clk 0:00:13.1]} 40. Ra7 {[%clk 0:00:18.9]} 40...
Ke6 {[%clk 0:00:12.8]} 41. g3 {[%clk 0:00:14.1]} 41... Ra8 {[%clk 0:00:12.7]}
42. Nxd6 {[%clk 0:00:12.7]} 42... Kxd6 {[%clk 0:00:11.2]} 43. Rb7 {[%clk
0:00:12.2]} 43... Rec8 {[%clk 0:00:10.2]} 44. Rc3 {[%clk 0:00:10.9]} 44... Ra5
{[%clk 0:00:09.4]} 45. Kg2 {[%clk 0:00:10.1]} 45... Rc5 {[%clk 0:00:08.5]} 46.
Ra3 {[%clk 0:00:10.5]} 46... Kc6 {[%clk 0:00:08.8]} 47. Rba7 {[%clk 0:00:10.7]}
47... Rd5 {[%clk 0:00:08.3]} 48. Rc3+ {[%clk 0:00:10.6]} 48... Kd6 {[%clk
0:00:08.5]} 49. Ra4 {[%clk 0:00:11.3]} 49... c5 {[%clk 0:00:08.6]} 50. Ra6
{[%clk 0:00:11.3]} 50... Rc6 {[%clk 0:00:09.2]} 51. Ra7 {[%clk 0:00:11.7]} 51...
b5 {[%clk 0:00:09.1]} 52. Rb7 {[%clk 0:00:12.2]} 52... b4 {[%clk 0:00:08.8]} 53.
Rb3 {[%clk 0:00:12.9]} 53... Ke6 {[%clk 0:00:09]} 54. Rg7 {[%clk 0:00:12.6]}
54... Kf6 {[%clk 0:00:08.9]} 55. Rb7 {[%clk 0:00:12.9]} 55... Rcd6 {[%clk
0:00:09.4]} 56. Rc7 {[%clk 0:00:11.3]} 56... Rxd3 {[%clk 0:00:09.3]} 57. Rxd3
{[%clk 0:00:11.5]} 57... Rxd3 {[%clk 0:00:10]} 58. Rxc5 {[%clk 0:00:12.2]} 58...
b3 {[%clk 0:00:10.2]} 59. Rb5 {[%clk 0:00:12.7]} 59... e4 {[%clk 0:00:10.3]} 60.
Kf1 {[%clk 0:00:12.9]} 60... Ke6 {[%clk 0:00:10.3]} 61. Ke2 {[%clk 0:00:13.5]}
61... Kd6 {[%clk 0:00:10.6]} 62. Rb6+ {[%clk 0:00:13.5]} 62... Kc5 {[%clk
0:00:10.9]} 63. Rb8 {[%clk 0:00:12.6]} 63... Kc4 {[%clk 0:00:11.1]} 64. Rc8+
{[%clk 0:00:12.9]} 64... Kb4 {[%clk 0:00:11.4]} 65. h4 {[%clk 0:00:13.5]} 65...
Ka3 {[%clk 0:00:11.6]} 66. Rb8 {[%clk 0:00:14]} 66... b2 {[%clk 0:00:10.6]} 67.
Ra8+ {[%clk 0:00:12.3]} 67... Kb3 {[%clk 0:00:10.7]} 68. Rb8+ {[%clk 0:00:12.9]}
68... Kc2 {[%clk 0:00:10.8]} 69. Rb6 {[%clk 0:00:13.1]} 69... b1=Q {[%clk
0:00:09.8]} 0-1

[Event "Late-Titled-Tuesday-Blitz-May-14-2024"]
[Site "Chess.com"]
[Date "2024.05.14"]
[Round "1"]
[White "stollenmonster"]
[Black "Smiechu"]
[Result "1-0"]
[WhiteElo "2892"]
[BlackElo "2495"]
[TimeControl "180+1"]
[EndTime "14:08:33 PDT"]
[Termination "stollenmonster won by resignation"]

1. e4 {[%clk 0:03:00.9]} 1... c5 {[%clk 0:02:59.8]} 2. Nf3 {[%clk 0:03:00.5]}
2... g6 {[%clk 0:03:00.5]} 3. d4 {[%clk 0:03:00.1]} 3... cxd4 {[%clk 0:03:00.7]}
4. Nxd4 {[%clk 0:03:01]} 4... Nc6 {[%clk 0:03:01]} 5. Nc3 {[%clk 0:03:01.6]}
5... Bg7 {[%clk 0:03:01.5]} 6. Nde2 {[%clk 0:03:02.1]} 6... Nf6 {[%clk
0:03:01.8]} 7. g3 {[%clk 0:03:02.6]} 7... O-O {[%clk 0:03:02.3]} 8. Bg2 {[%clk
0:03:03.2]} 8... d6 {[%clk 0:03:03]} 9. O-O {[%clk 0:03:03.4]} 9... Bd7 {[%clk
0:03:01.8]} 10. h3 {[%clk 0:03:02.9]} 10... Rc8 {[%clk 0:03:01.6]} 11. a4 {[%clk
0:03:03]} 11... Ne5 {[%clk 0:02:53.8]} 12. Nd5 {[%clk 0:03:02.3]} 12... Bc6
{[%clk 0:02:51.7]} 13. Ra2 {[%clk 0:03:01.9]} 13... e6 {[%clk 0:02:42.2]} 14.
Nxf6+ {[%clk 0:03:01.1]} 14... Qxf6 {[%clk 0:02:42.3]} 15. Nf4 {[%clk
0:02:58.2]} 15... Rfd8 {[%clk 0:02:28.7]} 16. b3 {[%clk 0:02:57.6]} 16... Qe7
{[%clk 0:02:01.6]} 17. c4 {[%clk 0:02:53]} 17... a5 {[%clk 0:01:49.6]} 18. Be3
{[%clk 0:02:46]} 18... Nd7 {[%clk 0:01:47.5]} 19. Nd5 {[%clk 0:02:41.5]} 19...
exd5 {[%clk 0:01:21.5]} 20. exd5 {[%clk 0:02:35.4]} 20... Nc5 {[%clk 0:01:06.1]}
21. dxc6 {[%clk 0:02:34.9]} 21... bxc6 {[%clk 0:01:07]} 22. Rd2 {[%clk
0:02:28.3]} 22... Bc3 {[%clk 0:00:55.9]} 23. Re2 {[%clk 0:02:23.3]} 23... Qb7
{[%clk 0:00:53.3]} 24. Bg5 {[%clk 0:02:20.9]} 24... f6 {[%clk 0:00:47.9]} 25.
Bh6 {[%clk 0:02:12.9]} 25... Qxb3 {[%clk 0:00:34.9]} 26. Re3 {[%clk 0:01:24.7]}
26... Qxd1 {[%clk 0:00:28.2]} 27. Rxd1 {[%clk 0:01:25.6]} 27... Nxa4 {[%clk
0:00:28.1]} 28. Re7 {[%clk 0:00:57.1]} 28... f5 {[%clk 0:00:23.9]} 29. Rc1
{[%clk 0:00:56.4]} 29... Bf6 {[%clk 0:00:21.4]} 30. Ra7 {[%clk 0:00:56]} 30...
Nc5 {[%clk 0:00:20.7]} 31. Be3 {[%clk 0:00:52.1]} 31... Nb3 {[%clk 0:00:18.3]}
32. Rb1 {[%clk 0:00:49.4]} 32... Rb8 {[%clk 0:00:18.3]} 33. Bxc6 {[%clk
0:00:48]} 33... Rdc8 {[%clk 0:00:15.6]} 34. Bd5+ {[%clk 0:00:48.3]} 34... Kh8
{[%clk 0:00:14.9]} 35. Bh6 {[%clk 0:00:46.6]} 35... Nc5 {[%clk 0:00:10.2]} 36.
Rxb8 {[%clk 0:00:42.4]} 36... Rxb8 {[%clk 0:00:10.6]} 37. Rxa5 {[%clk
0:00:43.1]} 37... Bg7 {[%clk 0:00:11]} 38. Bf4 {[%clk 0:00:42.7]} 38... Rd8
{[%clk 0:00:10.6]} 39. Bxd6 {[%clk 0:00:36.8]} 39... Rxd6 {[%clk 0:00:09.7]} 40.
Ra8+ {[%clk 0:00:32.2]} 40... Bf8 {[%clk 0:00:09.9]} 41. Rxf8+ {[%clk
0:00:32.6]} 41... Kg7 {[%clk 0:00:10.6]} 42. Rf7+ {[%clk 0:00:33.1]} 42... Kh6
{[%clk 0:00:10.5]} 43. Rc7 {[%clk 0:00:33.8]} 43... Nd3 {[%clk 0:00:10.3]} 44.
h4 {[%clk 0:00:30.6]} 44... Ne5 {[%clk 0:00:09]} 45. f4 {[%clk 0:00:28.1]} 45...
Nd3 {[%clk 0:00:05.3]} 46. Bg8 {[%clk 0:00:27.3]} 46... Kh5 {[%clk 0:00:05.7]}
47. Kg2 {[%clk 0:00:20.5]} 47... Kg4 {[%clk 0:00:05.6]} 48. Bd5 {[%clk
0:00:19.5]} 48... Ne1+ {[%clk 0:00:05.4]} 49. Kf2 {[%clk 0:00:19.8]} 49... Nd3+
{[%clk 0:00:05.5]} 50. Ke3 {[%clk 0:00:19.6]} 50... Ne1 {[%clk 0:00:05.2]} 51.
Rxh7 {[%clk 0:00:19.4]} 51... Kxg3 {[%clk 0:00:05.2]} 52. h5 {[%clk 0:00:19.9]}
52... gxh5 {[%clk 0:00:04.8]} 53. Rxh5 {[%clk 0:00:19.7]} 53... Ng2+ {[%clk
0:00:04.9]} 54. Bxg2 {[%clk 0:00:17.8]} 54... Kxg2 {[%clk 0:00:05.2]} 55. Rxf5
{[%clk 0:00:18]} 55... Kg3 {[%clk 0:00:05.8]} 56. c5 {[%clk 0:00:18.3]} 56...
Rc6 {[%clk 0:00:05.4]} 57. Rg5+ {[%clk 0:00:18.8]} 57... Kh4 {[%clk 0:00:05.4]}
58. Kd4 {[%clk 0:00:18]} 58... Rf6 {[%clk 0:00:05.6]} 59. Ke4 {[%clk 0:00:17]}
59... Re6+ {[%clk 0:00:05.9]} 60. Re5 {[%clk 0:00:17]} 60... Rc6 {[%clk
0:00:05.6]} 61. Kd5 {[%clk 0:00:17.2]} 61... Rc8 {[%clk 0:00:05.9]} 62. c6
{[%clk 0:00:17.4]} 62... Kg4 {[%clk 0:00:06.2]} 63. f5 {[%clk 0:00:17.3]} 63...
Kg5 {[%clk 0:00:06.7]} 64. Kd6 {[%clk 0:00:17.4]} 64... Kf6 {[%clk 0:00:06.9]}
65. Rb5 {[%clk 0:00:16.8]} 65... Rd8+ {[%clk 0:00:05.8]} 66. Kc7 {[%clk
0:00:17.1]} 66... Rf8 {[%clk 0:00:06]} 67. Kb7 {[%clk 0:00:17.5]} 67... Rf7+
{[%clk 0:00:05.5]} 68. c7 {[%clk 0:00:18.1]} 1-0